bitfinex-derivatives/quotes_SOLF0:USTF0_20250309
["timestamp","ask_amount","ask_price","bid_price","bid_amount"]
[1741515370015,1.85e-05,137.71,137.7,7.2634]
[1741515370422,1.85e-05,137.71,137.69,7.2639]
[1741515370618,1.85e-05,137.71,137.67,26.94]
[1741515371622,1.85e-05,137.71,137.69,7.2635]
[1741515372520,1.85e-05,137.71,137.64,26.94]
[1741515372919,1.85e-05,137.71,137.67,7.2647]
[1741515373121,5.68372827,137.7,137.67,7.2647]
[1741515373622,5.68372827,137.7,137.67,7.31218561]
[1741515373818,7.2632185,137.71,137.67,7.31218561]
[1741515374025,7.2632185,137.71,137.67,0.04748561]
[1741515374326,1.85e-05,137.71,137.67,0.04748561]
[1741515374926,5.67735472,137.7,137.67,0.04748561]
[1741515375121,5.67735472,137.7,137.68,7.2641]
[1741515375325,1.85e-05,137.71,137.68,4.4647]
[1741515375723,1.85e-05,137.71,137.69,7.2639]
[1741515377024,1.85e-05,137.71,137.68,7.2643]
[1741515377231,1.85e-05,137.71,137.67,0.04748561]
[1741515377430,5.67256238,137.7,137.67,0.04748561]
[1741515378027,1.85e-05,137.71,137.67,0.04748561]
[1741515378528,1.85e-05,137.71,137.69,7.2637]
[1741515378725,1.85e-05,137.71,137.67,0.04748561]
[1741515379126,1.85e-05,137.71,137.68,7.2641]
[1741515379326,5.67116834,137.7,137.68,7.2641]
[1741515379731,5.67116834,137.7,137.67,7.31198561]
[1741515380233,26.8400185,137.71,137.67,0.04748561]
[1741515380533,26.8400185,137.71,137.63,26.84]
[1741515380534,5.55661425,137.7,137.63,26.84]
[1741515380832,12.82013298,137.69,137.58,1.8733]
[1741515381134,32.37588704,137.68,137.59,26.82]
[1741515381427,9.25,137.67,137.63,7.2667]
[1741515381628,0.05585334,137.65,137.63,7.2667]
[1741515382832,0.05585334,137.65,137.63,7.2668]
[1741515383232,0.05585334,137.65,137.62,0.05230001]
[1741515383433,0.05585334,137.65,137.64,7.2666]
[1741515386034,0.05585334,137.65,137.62,7.31970001]
[1741515386429,26.91585334,137.65,137.62,0.05230001]
[1741515386629,26.91585334,137.65,137.57,239.64]
[1741515386630,26.91585334,137.65,137.56,26.84]
[1741515386829,7.267,137.64,137.56,26.84]
[1741515387538,7.267,137.64,137.6,7.2685]
[1741515387739,0.05058638,137.61,137.6,7.2685]
[1741515387930,26.86,137.65,137.59,0.05479394]
[1741515388236,0.04851451,137.62,137.59,0.05479394]
[1741515388738,0.04851451,137.62,137.61,7.2682]
[1741515389530,0.04851451,137.62,137.61,69.2682]
[1741515390138,1.451e-05,137.62,137.61,96.1482]
[1741515391429,1.451e-05,137.62,137.61,7.2682]
[1741515407750,1.451e-05,137.62,137.59,0.05479394]
[1741515408057,1.99101451,137.62,137.52,26.74]
[1741515408353,7.2687,137.6,137.56,7.2704]
[1741515408557,34.0287,137.6,137.56,7.2704]
[1741515409154,0.05190926,137.59,137.57,0.04821575]
[1741515409350,0.05190926,137.59,137.57,7.31851575]
[1741515409552,0.05190926,137.59,137.57,0.04821575]
[1741515410258,0.05190926,137.59,137.5,28.6988]
[1741515410448,28.7663,137.6,137.54,7.2714]
[1741515410650,7.2694,137.59,137.54,7.2714]
[1741515410855,28.7663,137.6,137.5,28.6988]
[1741515411059,5.64361824,137.59,137.51,62.0]
[1741515411453,0.05332635,137.56,137.54,0.0484072]
[1741515411752,0.05332635,137.56,137.55,7.2711]
[1741515412060,2.635e-05,137.56,137.55,7.2711]
[1741515414463,2.635e-05,137.56,137.54,0.0484072]
[1741515415155,7.27132635,137.56,137.54,0.0484072]
[1741515416261,2.635e-05,137.56,137.54,0.0484072]
[1741515416661,2.635e-05,137.56,137.54,7.3199072]
[1741515417664,2.635e-05,137.56,137.54,0.0484072]
[1741515417960,2.635e-05,137.56,137.55,7.2713]
[1741515421254,2.635e-05,137.56,137.55,11.0899]
[1741515421658,2.635e-05,137.56,137.55,73.0899]
[1741515422766,2.635e-05,137.56,137.55,76.7299]
[1741515423161,2.635e-05,137.56,137.55,78.06521812]
[1741515423559,2.635e-05,137.56,137.55,78.06508465]
[1741515424460,2.635e-05,137.56,137.55,104.82508465]
[1741515426162,2.635e-05,137.56,137.55,101.18508465]
[1741515426955,2.635e-05,137.56,137.55,104.82508465]
[1741515427162,2.635e-05,137.56,137.55,104.82505567]
[1741515428362,2.635e-05,137.56,137.55,101.18505567]
[1741515428962,2.635e-05,137.56,137.55,104.82505567]
[1741515429160,2.635e-05,137.56,137.55,78.06505567]
[1741515429366,2.635e-05,137.56,137.55,99.8299]
[1741515432662,2.635e-05,137.56,137.55,103.4699]
[1741515433066,2.635e-05,137.56,137.55,104.80519847]
[1741515433764,2.635e-05,137.56,137.55,99.8299]
[1741515433957,2.635e-05,137.56,137.55,37.8299]
[1741515434162,2.635e-05,137.56,137.55,35.9471]
[1741515434464,2.635e-05,137.56,137.55,34.0113]
[1741515434869,2.635e-05,137.56,137.55,7.2713]
[1741515438368,2.635e-05,137.56,137.54,7.3202072]
[1741515438576,2.635e-05,137.56,137.54,0.0484072]
[1741515439067,2.635e-05,137.56,137.55,7.2713]
[1741515439272,5.65790804,137.56,137.55,7.2713]
[1741515439875,2.635e-05,137.56,137.55,7.2713]
[1741515440968,2.635e-05,137.56,137.54,0.0484072]
[1741515441566,2.635e-05,137.56,137.54,7.3202072]
[1741515442080,2.635e-05,137.56,137.54,0.0484072]
[1741515442277,26.74,137.55,137.47,266.58]
[1741515442480,3.9546,137.54,137.47,26.74]
[1741515442777,16.87930521,137.54,137.49,7.2745]
[1741515442977,9.60730521,137.54,137.47,26.74]
[1741515443271,3.9546,137.54,137.47,26.74]
[1741515443476,0.05145515,137.52,137.51,7.273]
[1741515447381,0.05145515,137.52,137.49,0.05107211]
[1741515447576,26.79145515,137.52,137.49,0.05107211]
[1741515447880,26.79145515,137.52,137.36,80.43645014]
[1741515447881,30.43145515,137.52,137.46,7.2758]
[1741515448080,26.74,137.52,137.4,26.74]
[1741515448483,5.63773817,137.51,137.4,26.74]
[1741515448782,26.74,137.52,137.4,26.74]
[1741515448983,0.0543628,137.47,137.46,7.2758]
[1741515449282,26.74,137.52,137.45,26.78692716]
[1741515449584,3.9546,137.54,137.49,7.274]
[1741515449878,3.9546,137.54,137.46,2.0439]
[1741515450078,7.2728,137.53,137.46,9.3196]
[1741515450385,3.9546,137.54,137.46,2.0439]
[1741515450682,0.04891666,137.51,137.48,0.04766923]
[1741515450881,26.80891666,137.51,137.48,0.04766923]
[1741515451085,0.04891666,137.51,137.48,0.04766923]
[1741515451678,0.04891666,137.51,137.48,7.32236923]
[1741515452481,0.04891666,137.51,137.48,7.32256923]
[1741515452683,0.04891666,137.51,137.48,0.04766923]
[1741515453078,26.80891666,137.51,137.48,0.04766923]
[1741515453588,30.44891666,137.51,137.39,62.0]
[1741515453885,26.76,137.51,137.38,4.0293]
[1741515454185,245.60945911,137.5,137.39,7.2797]
[1741515454376,245.60945911,137.5,137.37,26.76]
[1741515454579,0.04961571,137.45,137.42,0.04710814]
[1741515454785,26.76,137.44,137.42,0.04710814]
[1741515455280,26.76,137.44,137.35,239.96]
[1741515455584,26.76,137.44,137.35,266.72]
[1741515456176,26.76,137.44,137.36,26.76]
[1741515456380,0.05317248,137.41,137.36,26.76]
[1741515456786,0.05317248,137.41,137.36,88.76]
[1741515457387,0.05317248,137.41,137.4,7.2793]
[1741515459181,0.05317248,137.41,137.39,7.2795]
[1741515459679,0.05317248,137.41,137.4,7.2793]
[1741515462088,30.7248,137.48,137.39,26.82]
[1741515462386,26.82,137.51,137.4,3.8755]
[1741515462582,26.82,137.51,137.49,7.2743]
[1741515462987,26.82,137.51,137.43,26.84]
[1741515463281,26.87562868,137.51,137.49,0.05466249]
[1741515463486,26.87562868,137.51,137.46,0.05160024]
[1741515463989,26.87562868,137.51,137.47,7.2751]
[1741515464287,26.87562868,137.51,137.46,0.05160024]
[1741515465083,26.87562868,137.51,137.47,7.2755]
[1741515465488,0.05562868,137.51,137.5,7.274]
[1741515467785,2.868e-05,137.51,137.5,7.274]
[1741515473588,2.868e-05,137.51,137.49,7.32025116]
[1741515473784,26.86,137.5,137.49,0.04595116]
[1741515473992,26.86,137.5,137.44,26.84]
[1741515474189,1.9098,137.49,137.44,26.84]
[1741515474789,1.9098,137.49,137.48,7.275]
[1741515475581,26.89283177,137.5,137.49,7.2745]
[1741515476392,26.89283177,137.5,137.47,0.05444052]
[1741515477593,26.89283177,137.5,137.47,7.32984052]
[1741515478286,0.05283177,137.5,137.49,7.2745]
[1741515481792,312.57219458,137.63,137.47,26.89444052]
[1741515481998,5.538623,137.6,137.48,5.23701058]
[1741515482199,3.7865,137.61,137.48,3.9011]
[1741515482389,5.64831245,137.59,137.48,3.9011]
[1741515482899,0.05357536,137.55,137.54,7.2716]
[1741515483198,3.7865,137.61,137.54,7.2716]
[1741515483496,5.53809812,137.6,137.54,7.2716]
[1741515483692,5.59169421,137.59,137.56,0.05580965]
[1741515483893,0.05359609,137.59,137.56,0.05580965]
[1741515484391,5.64838345,137.58,137.56,0.05580965]
[1741515484796,0.05359609,137.59,137.56,0.05580965]
[1741515485796,26.87359609,137.59,137.56,0.05580965]
[1741515486191,5.64689545,137.58,137.56,0.05580965]
[1741515486701,26.87359609,137.59,137.56,7.32640965]
[1741515486996,26.87359609,137.59,137.56,0.05580965]
[1741515487900,26.87359609,137.59,137.56,7.32660965]
[1741515488101,26.87359609,137.59,137.56,0.05580965]
[1741515490105,26.87359609,137.59,137.56,7.32650965]
[1741515490300,0.05359609,137.59,137.56,0.05580965]
[1741515490700,0.05359609,137.59,137.58,7.2698]
[1741515490904,0.05359609,137.59,137.57,26.82]
[1741515491102,0.05359609,137.59,137.56,0.05580965]
[1741515491907,0.05359609,137.59,137.58,7.2698]
[1741515492700,0.05359609,137.59,137.57,26.9]
[1741515492903,0.05359609,137.59,137.56,0.05580965]
[1741515495721,7.2698,137.58,137.56,0.05580965]
[1741515496199,0.05359609,137.59,137.56,0.05580965]
[1741515496402,7.2703,137.57,137.56,0.05580965]
[1741515496603,26.92,137.58,137.5,7.2738]
[1741515496803,7.272,137.54,137.5,7.2738]
[1741515497009,26.92,137.55,137.46,28.8522]
[1741515497210,26.92,137.55,137.52,7.2728]
[1741515497610,26.92,137.55,137.46,28.8522]
[1741515497807,26.97079564,137.55,137.52,0.04923269]
[1741515498015,34.24249564,137.55,137.52,0.04923269]
[1741515498622,26.97079564,137.55,137.52,0.04923269]
[1741515498821,7.2722,137.54,137.52,0.04923269]
[1741515499116,26.97079564,137.55,137.52,0.04923269]
[1741515500111,34.24239564,137.55,137.52,0.04923269]
[1741515500715,34.24229564,137.55,137.52,0.04923269]
[1741515501219,26.97079564,137.55,137.52,0.04923269]
[1741515501518,0.05079564,137.55,137.52,0.04923269]
[1741515501720,0.05079564,137.55,137.53,7.2721]
[1741515501917,0.05079564,137.55,137.52,0.04923269]
[1741515502318,0.05079564,137.55,137.54,7.2719]
[1741515502811,0.05079564,137.55,137.52,0.04923269]
[1741515503525,27.27079564,137.55,137.52,0.04923269]
[1741515504114,34.54229564,137.55,137.52,0.04923269]
[1741515504926,0.05079564,137.55,137.52,0.04923269]
[1741515505627,7.32249564,137.55,137.52,0.04923269]
[1741515506328,0.05079564,137.55,137.52,0.04923269]
[1741515506824,0.05079564,137.55,137.53,7.2721]
[1741515508428,0.05079564,137.55,137.52,0.04923269]
[1741515508625,5.64285203,137.54,137.52,0.04923269]
[1741515508826,0.05079564,137.55,137.52,0.04923269]
[1741515509022,5.64284425,137.54,137.52,0.04923269]
[1741515509223,0.05079564,137.55,137.52,0.04923269]
[1741515509423,18.5682342,137.54,137.52,0.04923269]
[1741515509619,12.92535803,137.54,137.52,0.04923269]
[1741515509829,5.65345803,137.53,137.52,0.04923269]
[1741515510529,5.64636431,137.53,137.52,0.04923269]
[1741515511031,11.30387316,137.53,137.52,0.04923269]
[1741515513023,18.57627316,137.53,137.52,0.04923269]
[1741515513227,11.30387316,137.53,137.52,0.04923269]
[1741515514229,11.30387316,137.53,137.52,7.32213269]
[1741515514832,11.30387316,137.53,137.52,0.04923269]
[1741515515739,11.30387316,137.53,137.52,7.32213269]
[1741515515932,5.65750885,137.53,137.52,7.32213269]
[1741515516131,27.3,137.54,137.52,0.04923269]
[1741515516737,5.64653245,137.53,137.52,0.04923269]
[1741515516938,11.30350448,137.53,137.52,0.04923269]
[1741515517133,11.30350448,137.53,137.52,7.32213269]
[1741515517336,11.30350448,137.53,137.52,0.04923269]
[1741515517737,5.65697203,137.53,137.52,0.04923269]
[1741515518340,11.30375134,137.53,137.52,0.04923269]
[1741515519343,11.30375134,137.53,137.46,2.0246]
[1741515519545,11.30375134,137.52,137.46,2.0246]
[1741515519734,27.22,137.51,137.46,2.0246]
[1741515519935,32.87697203,137.51,137.5,7.2737]
[1741515520142,5.65697203,137.51,137.5,7.2737]
[1741515520337,27.22,137.54,137.46,2.0246]
[1741515520546,5.64855054,137.53,137.51,7.2732]
[1741515520751,5.64855054,137.52,137.51,7.2732]
[1741515520941,11.30740217,137.52,137.5,7.2739]
[1741515521136,11.30740217,137.52,137.49,0.02217877]
[1741515521137,5.65885163,137.52,137.49,0.02217877]
[1741515521341,0.05110584,137.53,137.49,0.02217877]
[1741515521541,5.6484817,137.52,137.5,7.2737]
[1741515521744,0.05110584,137.53,137.5,7.2737]
[1741515522041,5.64914127,137.52,137.5,7.2737]
[1741515522244,0.05110584,137.53,137.49,7.29647877]
[1741515522442,5.65030919,137.52,137.41,27.2]
[1741515522644,7.2746,137.49,137.4,5.8645]
[1741515522844,33.00840821,137.48,137.4,5.8645]
[1741515523048,5.64753375,137.47,137.4,5.8645]
[1741515523244,5.65858796,137.47,137.4,5.8645]
[1741515523449,5.65858796,137.47,137.45,7.2764]
[1741515523646,5.65858796,137.47,137.4,5.8645]
[1741515523848,0.0555009,137.45,137.4,5.8645]
[1741515524048,29.4794,137.51,137.47,7.2756]
[1741515524253,5.64639121,137.5,137.4,5.8645]
[1741515524446,12.92089121,137.49,137.4,5.8645]
[1741515524645,5.64639121,137.48,137.4,5.8645]
[1741515524845,5.65684677,137.5,137.4,5.8645]
[1741515524846,40.58229121,137.47,137.4,5.8645]
[1741515525046,0.04841584,137.45,137.42,7.32469561]
[1741515525246,0.04841584,137.45,137.42,0.04679561]
[1741515525652,0.04841584,137.45,137.44,7.2772]
[1741515526840,0.04841584,137.45,137.42,0.04679561]
[1741515528846,0.04841584,137.45,137.42,7.32499561]
[1741515529251,0.04841584,137.45,137.42,0.04679561]
[1741515529447,5.78533293,137.44,137.42,0.04679561]
[1741515529647,0.04841584,137.45,137.42,0.04679561]
[1741515529951,5.78609728,137.44,137.42,7.32479561]
[1741515530149,0.04841584,137.45,137.42,7.32479561]
[1741515530349,5.78622108,137.44,137.42,7.32479561]
[1741515530549,0.04841584,137.45,137.42,0.04679561]
[1741515530550,7.32511584,137.45,137.42,0.04679561]
[1741515530847,5.78303094,137.44,137.3,120.01474035]
[1741515531053,5.78303094,137.44,137.37,7.2805]
[1741515531054,7.2785,137.42,137.37,7.2805]
[1741515531256,33.72221087,137.41,137.32,31.99064415]
[1741515531551,5.78221087,137.4,137.32,31.99064415]
[1741515531754,33.63690036,137.41,137.32,31.99064415]
[1741515531949,5.77308895,137.4,137.32,31.99064415]
[1741515532151,0.05390093,137.38,137.36,7.281]
[1741515532451,0.05390093,137.38,137.32,1.8666]
[1741515533344,0.05390093,137.38,137.3,28.02]
[1741515533548,27.94,137.41,137.3,28.02]
[1741515533849,0.04862821,137.35,137.34,7.282]
[1741515534049,27.94,137.41,137.3,28.02]
[1741515534250,27.94,137.41,137.37,7.2805]
[1741515534651,0.0484007,137.4,137.37,7.2805]
[1741515534847,0.0484007,137.4,137.31,28.06]
[1741515535056,27.94,137.41,137.31,28.06]
[1741515535253,0.05562389,137.37,137.36,7.2814]
[1741515535552,27.94,137.41,137.31,28.06]
[1741515535747,28.06,137.42,137.31,28.06]
[1741515536353,242.113,137.44,137.31,28.06]
[1741515536654,2.813e-05,137.38,137.35,0.04875453]
[1741515536952,28.08,137.44,137.36,28.12]
[1741515537259,28.08,137.44,137.37,32.0241]
[1741515537650,1.9152,137.48,137.37,32.0241]
[1741515537959,0.05038803,137.42,137.39,0.05189798]
[1741515538159,28.14,137.48,137.39,0.05189798]
[1741515538358,28.14,137.48,137.37,32.0241]
[1741515538560,28.14,137.48,137.44,7.2768]
[1741515538766,242.0416,137.5,137.41,28.2]
[1741515538949,28.2,137.49,137.41,28.2]
[1741515539149,28.2,137.49,137.45,7.2763]
[1741515539361,0.05079937,137.46,137.45,7.2763]
[1741515539856,193.0,137.51,137.44,0.05344236]
[1741515540059,30.0952,137.52,137.44,0.05344236]
[1741515540359,28.18,137.52,137.44,0.05344236]
[1741515541060,0.05516615,137.49,137.45,28.16]
[1741515541258,0.05516615,137.49,137.45,32.0216]
[1741515541558,0.05516615,137.49,137.46,0.05246408]
[1741515541958,0.05516615,137.49,137.48,7.275]
[1741515542360,0.05516615,137.49,137.46,0.05246408]
[1741515544466,0.05516615,137.49,137.47,7.2752]
[1741515545563,0.05516615,137.49,137.48,7.275]
[1741515546153,28.18,137.52,137.46,0.05246408]
[1741515547166,35.4533,137.52,137.48,7.2747]
[1741515547363,0.04653758,137.5,137.48,7.2747]
[1741515547564,0.04653758,137.5,137.46,0.05246408]
[1741515548467,0.04653758,137.5,137.47,7.2753]
[1741515548665,0.04653758,137.5,137.46,0.05246408]
[1741515549070,0.04653758,137.5,137.47,7.2751]
[1741515549568,0.04653758,137.5,137.48,7.2749]
[1741515550170,0.04653758,137.5,137.47,7.2752]
[1741515551171,0.04653758,137.5,137.47,7.2755]
[1741515551671,7.2756,137.47,137.46,0.05246408]
[1741515551870,28.14,137.48,137.46,0.05246408]
[1741515552269,7.2756,137.47,137.46,0.05246408]
[1741515552566,11.4710043,137.47,137.38,3.9532]
[1741515552764,7.2773,137.44,137.41,7.2785]
[1741515553166,28.14,137.48,137.41,7.2785]
[1741515553368,5.77899442,137.47,137.41,7.2785]
[1741515553571,28.14,137.48,137.38,3.9532]
[1741515553572,5.77899442,137.46,137.43,0.04642661]
[1741515553877,0.05074021,137.45,137.43,0.04642661]
[1741515555075,0.05074021,137.45,137.44,7.2772]
[1741515555872,0.05074021,137.45,137.43,0.04642661]
[1741515555873,0.05074021,137.45,137.43,7.32392661]
[1741515556477,0.05074021,137.45,137.44,7.2772]
[1741515556774,0.05074021,137.45,137.43,0.04642661]
[1741515557175,7.32774021,137.45,137.43,0.04642661]
[1741515557574,0.05074021,137.45,137.43,0.04642661]
[1741515558175,7.32774021,137.45,137.43,0.04642661]
[1741515558881,33.88099066,137.44,137.34,268.26]
[1741515559081,33.88099066,137.44,137.35,5.7354]
[1741515559082,28.1,137.44,137.35,5.7354]
[1741515559283,7.2781,137.43,137.39,7.2797]
[1741515559471,28.1,137.44,137.39,7.2797]
[1741515559778,5.781155,137.43,137.35,5.7354]
[1741515559976,0.04608493,137.43,137.4,0.05065383]
[1741515562182,0.04608493,137.43,137.4,7.32965383]
[1741515562475,0.04608493,137.43,137.4,0.05065383]
[1741515562878,0.04608493,137.43,137.42,7.2782]
[1741515563472,28.18,137.47,137.45,7.2763]
[1741515563675,5.78683279,137.46,137.41,2.0324]
[1741515563981,28.18,137.47,137.41,2.0324]
[1741515564281,5.78681361,137.46,137.43,7.2774]
[1741515564577,0.04588311,137.46,137.43,0.05163684]
[1741515565181,5.78789782,137.45,137.43,0.05163684]
[1741515565374,0.04588311,137.46,137.43,0.05163684]
[1741515565574,0.04588311,137.46,137.43,28.19163684]
[1741515566177,0.04588311,137.46,137.43,35.46893684]
[1741515566974,0.04588311,137.46,137.44,7.277]
[1741515567174,0.04588311,137.46,137.43,28.19163684]
[1741515567375,0.04588311,137.46,137.45,7.2766]
[1741515567574,5.84060009,137.46,137.45,7.2766]
[1741515568081,34.00060009,137.46,137.35,3.8337]
[1741515568281,11.50144067,137.45,137.35,65.8337]
[1741515568582,33.86672369,137.45,137.35,65.8337]
[1741515568775,11.49994201,137.44,137.36,2.0346]
[1741515568982,5.79321832,137.43,137.36,2.0346]
[1741515569183,0.0528369,137.41,137.39,0.04603771]
[1741515571383,28.1928369,137.41,137.39,0.04603771]
[1741515571775,35.4716369,137.41,137.39,0.04603771]
[1741515572283,13.06985437,137.4,137.39,0.04603771]
[1741515572779,5.79055437,137.4,137.39,0.04603771]
[1741515572978,11.49212944,137.4,137.39,0.04603771]
[1741515573583,18.77142944,137.4,137.39,0.04603771]
[1741515573882,11.49212944,137.4,137.39,0.04603771]
[1741515574383,5.70157507,137.4,137.39,0.04603771]
[1741515574578,11.48731782,137.4,137.39,0.04603771]
[1741515575286,18.76661782,137.4,137.39,0.04603771]
[1741515576784,7.2809,137.37,137.31,28.12]
[1741515576985,7.2809,137.37,137.33,7.2827]
[1741515577187,7.2817,137.36,137.31,34.1235]
[1741515577386,7.2817,137.36,137.31,6.0035]
[1741515577579,28.14,137.41,137.31,6.0035]
[1741515577780,5.78512986,137.4,137.31,6.0035]
[1741515577980,0.04825427,137.37,137.35,0.0470881]
[1741515579184,7.32945427,137.37,137.35,0.0470881]
[1741515580188,0.04825427,137.37,137.35,0.0470881]
[1741515581289,0.04825427,137.37,137.35,7.3289881]
[1741515581786,0.04825427,137.37,137.35,0.0470881]
[1741515581990,28.06825427,137.37,137.35,0.0470881]
[1741515582587,35.34945427,137.37,137.35,0.0470881]
[1741515583085,28.06825427,137.37,137.35,0.0470881]
[1741515583885,28.06825427,137.37,137.35,7.3288881]
[1741515585092,0.04825427,137.37,137.35,7.3288881]
[1741515585286,28.06825427,137.37,137.36,7.2814]
[1741515585486,28.06825427,137.37,137.35,0.0470881]
[1741515586391,0.04825427,137.37,137.36,7.2814]
[1741515587082,193.0,137.45,137.35,0.0470881]
[1741515587282,7.2783,137.42,137.33,28.0]
[1741515587486,5.77576568,137.41,137.33,28.0]
[1741515587687,27.98,137.4,137.33,28.0]
[1741515588088,28.02,137.41,137.33,28.0]
[1741515588297,0.04600962,137.38,137.35,0.05166669]
[1741515589092,0.04600962,137.38,137.37,7.2809]
[1741515590997,28.02,137.41,137.4,7.2793]
[1741515591298,33.80222388,137.41,137.4,7.2793]
[1741515591499,28.02,137.41,137.4,7.2793]
[1741515592095,33.80199974,137.41,137.4,7.2793]
[1741515592399,33.80225955,137.41,137.39,0.04864015]
[1741515592598,5.78340856,137.4,137.39,0.04864015]
[1741515592897,5.78340856,137.4,137.39,7.32844015]
[1741515593093,5.78340856,137.4,137.39,0.04864015]
[1741515593398,11.48154059,137.4,137.39,0.04864015]
[1741515594596,11.48154059,137.4,137.36,7.2812]
[1741515594597,7.2799,137.39,137.36,7.2812]
[1741515594793,5.78646938,137.38,137.36,7.2812]
[1741515594989,7.2799,137.39,137.36,7.2812]
[1741515595187,5.78675817,137.38,137.36,7.2812]
[1741515595499,33.66785002,137.37,137.23,95.01225014]
[1741515595699,33.66785002,137.37,137.27,4.0496]
[1741515595700,5.78785002,137.36,137.27,4.0496]
[1741515595995,0.04625225,137.33,137.32,7.2833]
[1741515596195,33.5810496,137.37,137.32,7.2833]
[1741515596498,0.04729292,137.34,137.31,0.04880654]
[1741515596697,0.04729292,137.34,137.32,7.2835]
[1741515597294,0.04729292,137.34,137.33,7.283]
[1741515598003,0.04729292,137.34,137.31,0.04880654]
[1741515598497,0.04729292,137.34,137.31,7.33250654]
[1741515599799,0.04729292,137.34,137.31,0.04880654]
[1741515600190,0.04729292,137.34,137.33,7.283]
[1741515600393,27.84,137.4,137.32,1.954]
[1741515600598,5.79220874,137.39,137.33,3.8474]
[1741515600794,5.79220874,137.38,137.33,3.8474]
[1741515600994,7.2798,137.39,137.34,7.2821]
[1741515601198,5.79380518,137.38,137.33,3.8474]
[1741515601397,12.98809201,137.38,137.33,11.1299]
[1741515601601,0.0466347,137.37,137.34,0.05002248]
[1741515601996,0.0466347,137.37,137.36,7.2814]
[1741515602699,0.0466347,137.37,137.35,7.2817]
[1741515602888,0.0466347,137.37,137.34,0.05002248]
[1741515603901,0.0466347,137.37,137.36,7.2814]
[1741515604097,0.0466347,137.37,137.34,0.05002248]
[1741515604697,0.0466347,137.37,137.36,7.2814]
[1741515604900,0.0466347,137.37,137.34,0.05002248]
[1741515605199,0.0466347,137.37,137.35,7.2815]
[1741515605401,0.0466347,137.37,137.34,0.05002248]
[1741515606700,193.0,137.45,137.34,0.05002248]
[1741515606901,33.55811895,137.44,137.33,3.8474]
[1741515607104,5.79811895,137.43,137.34,27.78]
[1741515607295,13.07661895,137.42,137.34,27.78]
[1741515607600,11.51240023,137.41,137.34,27.78]
[1741515607796,5.80090193,137.4,137.38,7.2802]
[1741515607996,0.0480649,137.39,137.38,7.2802]
[1741515608399,0.0480649,137.39,137.37,7.2807]
[1741515608599,0.0480649,137.39,137.36,0.05298957]
[1741515608995,7.3279649,137.39,137.36,7.33428957]
[1741515609492,7.2809,137.37,137.36,0.05298957]
[1741515610303,13.08689575,137.37,137.36,0.05298957]
[1741515610896,18.80633318,137.37,137.36,0.05298957]
[1741515611597,5.71943743,137.37,137.36,7.33438957]
[1741515612005,0.0480649,137.39,137.38,7.2803]
[1741515612297,11.58842824,137.39,137.38,7.2803]
[1741515612900,11.58842824,137.39,137.37,7.2805]
[1741515613098,5.81337971,137.38,137.37,7.2805]
[1741515613498,5.77504853,137.39,137.36,0.05298957]
[1741515613698,5.77504853,137.39,137.38,7.2803]
[1741515614004,5.86698312,137.39,137.38,7.2803]
[1741515615107,5.86848692,137.39,137.38,7.2803]
[1741515615295,11.60213868,137.39,137.38,7.2803]
[1741515616602,240.28,137.47,137.43,7.2773]
[1741515616803,27.68,137.46,137.35,27.76]
[1741515617498,27.66,137.45,137.35,27.76]
[1741515617700,27.66,137.45,137.44,7.2772]
[1741515617929,27.66,137.46,137.35,27.76]
[1741515618095,27.71483113,137.46,137.43,0.05226016]
[1741515618301,27.66,137.46,137.43,7.2772]
[1741515618603,27.71565987,137.46,137.43,0.05324537]
[1741515618806,27.71565987,137.46,137.45,7.2766]
[1741515619203,27.67565987,137.46,137.45,7.2766]
[1741515619603,29.88429094,137.49,137.48,7.275]
[1741515621105,29.88429094,137.49,137.47,0.0513881]
[1741515621507,0.04613919,137.5,137.47,0.0513881]
[1741515622211,27.60613919,137.5,137.47,0.0513881]
[1741515622508,7.275,137.48,137.47,0.0513881]
[1741515622709,27.60613919,137.5,137.41,27.64]
[1741515623008,27.56,137.5,137.37,27.62]
[1741515623209,27.56,137.5,137.36,2.0383]
[1741515623704,27.56,137.5,137.42,0.04961377]
[1741515624110,7.2776,137.44,137.42,0.04961377]
[1741515624309,27.62,137.43,137.42,0.04961377]
[1741515624604,0.05074169,137.44,137.43,7.2774]
[1741515624810,27.62,137.44,137.43,7.2774]
[1741515625014,27.64980286,137.45,137.42,0.04679608]
[1741515625211,27.6,137.45,137.44,7.2772]